[Event "FIDE WYCC Girls U18 2023"]
[Site "Montesilvano"]
[Date "2023.11.15"]
[Round "3.24"]
[White "Wisniowski, Natalie"]
[Black "Latifah, Darmaki"]
[Result "1-0"]
[ECO "D31"]
[WhiteElo "1901"]
[BlackElo "1367"]
[Annotator "NA"]
[PlyCount "105"]
[EventDate "2023.11.13"]
[EventType "swiss"]
[EventCountry "ITA"]
[SourceTitle "playchess.com"]
[Source "ChessBase"]
[SourceQuality "1"]
[TimeControl "40/5400+30:1800+30"]

1. d4 {[%emt 0:00:02]} d5 {[%emt 0:00:05]} 2. c4 {[%emt 0:00:10]} e6 {[%emt 0:00:07]} 3. Nc3 {[%emt 0:00:11]} c6 {[%emt 0:00:09]} 4. e4 {[%emt 0:00:11]} dxe4 {[%emt 0:00:11]} 5. Nxe4 {[%emt 0:00:12]} Bb4+ {[%emt 0:00:05]} 6. Nc3 {[%emt 0:00:16]} Nf6 {[%emt 0:01:19]} 7. Nf3 {[%emt 0:00:17]} O-O {[%emt 0:06:55]} 8. a3 {[%emt 0:00:54]} Bxc3+ {[%emt 0:03:02]} 9. bxc3 {[%emt 0:00:11]} Nbd7 {[%emt 0:01:00]} 10. Bd3 {[%emt 0:03:42]} Qa5 {[%emt 0:03:08]} 11. Qc2 {[%emt 0:03:06]} e5 {[%emt 0:02:11]} 12. O-O {[%emt 0:16:13]} e4 {[%emt 0:09:29]} 13. Bxe4 {[%emt 0:00:15]} Nxe4 {[%emt 0:00:25]} 14. Qxe4 {[%emt 0:00:08]} Qxc3 {[%emt 0:04:23]} 15. Bg5 {[%emt 0:02:04]} Qxc4 {[%emt 0:00:57]} 16. Be7 {[%emt 0:03:18]} Re8 {[%emt 0:18:57]} 17. Rae1 {[%emt 0:03:01]} Nf6 {[%emt 0:20:19]} 18. Qh4 {[%emt 0:02:59]} Nd5 {[%emt 0:03:05]} 19. Bd6 {[%emt 0:07:01]} Bf5 {[%emt 0:06:42]} 20. Ne5 {[%emt 0:14:11]} Qb5 {[%emt 0:06:30]} 21. Qh5 {[%emt 0:03:28]} Bg6 {[%emt 0:06:45]} 22. Nxg6 {[%emt 0:04:55]} fxg6 {[%emt 0:00:57]} 23. Qf3 {[%emt 0:01:12]} Qc4 {[%emt 0:01:47]} 24. Be5 {[%emt 0:06:47]} Qc3 {[%emt 0:00:34]} 25. Qxc3 {[%emt 0:05:25]} Nxc3 {[%emt 0:00:01]} 26. Re3 {[%emt 0:00:21]} Nd5 {[%emt 0:00:46]} 27. Rb3 {[%emt 0:00:08]} b5 {[%emt 0:01:29]} 28. Rc1 {[%emt 0:01:35]} Rac8 {[%emt 0:00:49]} 29. f4 {[%emt 0:00:37]} a5 {[%emt 0:00:25]} 30. Rc5 {[%emt 0:01:45]} Nb6 {[%emt 0:01:20]} 31. Rb1 {[%emt 0:03:26]} Nd5 {[%emt 0:00:45]} 32. Rbc1 {[%emt 0:06:06]} Ne7 {[%emt 0:00:38]} 33. a4 {[%emt 0:06:37]} bxa4 {[%emt 0:00:49]} 34. Ra1 {[%emt 0:00:16]} Nd5 {[%emt 0:00:52]} 35. Rxa4 {[%emt 0:00:12]} Ra8 {[%emt 0:00:29]} 36. Rcxa5 {[%emt 0:00:50]} Rxa5 {[%emt 0:00:01]} 37. Rxa5 {[%emt 0:00:01]} Re7 {[%emt 0:00:35]} 38. Ra8+ {[%emt 0:01:32]} Kf7 {[%emt 0:00:03]} 39. Rc8 {[%emt 0:00:50]} Re6 {[%emt 0:01:16]} 40. Kf2 {[%emt 0:00:00]} Nb6 {[%emt 0:00:00]} 41. Rc7+ {[%emt 0:01:46]} Kf8 {[%emt 0:03:44]} 42. Bxg7+ {[%emt 0:02:33]} Ke8 {[%emt 0:00:27]} 43. Be5 {[%emt 0:02:59]} h5 {[%emt 0:00:33]} 44. h3 {[%emt 0:03:27]} Nd5 {[%emt 0:00:17]} 45. Rh7 {[%emt 0:00:43]} Kf8 {[%emt 0:03:47]} 46. Rh8+ {[%emt 0:02:09]} Kf7 {[%emt 0:00:14]} 47. g4 {[%emt 0:00:37]} hxg4 {[%emt 0:00:16]} 48. hxg4 {[%emt 0:00:06]} Nxf4 {[%emt 0:00:30]} 49. Bxf4 {[%emt 0:01:45]} Re4 {[%emt 0:00:02]} 50. Be3 {[%emt 0:01:47]} Rxg4 {[%emt 0:00:08]} 51. Rc8 {[%emt 0:00:11]} Ke6 {[%emt 0:01:18]} 52. Rh8 {[%emt 0:05:38]} Kf5 {[%emt 0:02:03]} 53. Kf3 {[%emt 0:00:12]} 1-0

[Event "FIDE WYCC Girls U18 2023"]
[Site "Montesilvano"]
[Date "2023.11.15"]
[Round "3.25"]
[White "Katter, Katharina"]
[Black "Gavrileva, Anna"]
[Result "1-0"]
[ECO "D45"]
[WhiteElo "1887"]
[BlackElo "1316"]
[Annotator "NA"]
[PlyCount "121"]
[EventDate "2023.11.13"]
[EventType "swiss"]
[EventCountry "ITA"]
[SourceTitle "playchess.com"]
[Source "ChessBase"]
[SourceQuality "1"]
[TimeControl "40/5400+30:1800+30"]

1. d4 {[%emt 0:00:03]} d5 {[%emt 0:00:02]} 2. c4 {[%emt 0:00:13]} e6 {[%emt 0:00:05]} 3. Nf3 {[%emt 0:00:16]} c6 {[%emt 0:00:41]} 4. e3 {[%emt 0:00:26]} Nf6 {[%emt 0:00:17]} 5. Nc3 {[%emt 0:00:14]} Nbd7 {[%emt 0:00:18]} 6. Qc2 {[%emt 0:00:17]} Bd6 {[%emt 0:00:14]} 7. b3 {[%emt 0:00:16]} O-O {[%emt 0:00:07]} 8. Be2 {[%emt 0:00:14]} b6 {[%emt 0:00:15]} 9. O-O {[%emt 0:00:12]} Bb7 {[%emt 0:00:10]} 10. Bb2 {[%emt 0:00:10]} Re8 {[%emt 0:00:25]} 11. Rfe1 {[%emt 0:02:51]} Qe7 {[%emt 0:03:58]} 12. e4 {[%emt 0:02:06]} Nxe4 {[%emt 0:02:33]} 13. Nxe4 {[%emt 0:00:27]} dxe4 {[%emt 0:00:08]} 14. Qxe4 {[%emt 0:00:12]} Nf6 {[%emt 0:00:26]} 15. Qc2 {[%emt 0:00:17]} Rad8 {[%emt 0:02:39]} 16. Bf1 {[%emt 0:01:50]} Qc7 {[%emt 0:25:11]} 17. c5 {[%emt 0:14:12]} Be7 {[%emt 0:01:10]} 18. Ne5 {[%emt 0:01:09]} a5 {[%emt 0:06:17]} 19. Rac1 {[%emt 0:12:11]} Rc8 {[%emt 0:08:24]} 20. Qd2 {[%emt 0:05:31]} Red8 {[%emt 0:04:37]} 21. cxb6 {[%emt 0:02:28]} Qxb6 {[%emt 0:04:59]} 22. Nc4 {[%emt 0:00:22]} Qa7 {[%emt 0:15:04]} 23. Qxa5 {[%emt 0:03:55]} Qxa5 {[%emt 0:03:19]} 24. Nxa5 {[%emt 0:01:34]} Ba8 {[%emt 0:00:07]} 25. a3 {[%emt 0:05:41]} c5 {[%emt 0:03:52]} 26. dxc5 {[%emt 0:03:48]} Bxc5 {[%emt 0:01:24]} 27. b4 {[%emt 0:10:15]} Ba7 {[%emt 0:01:08]} 28. Bxf6 {[%emt 0:09:14]} gxf6 {[%emt 0:01:05]} 29. Ba6 {[%emt 0:02:05]} Rxc1 {[%emt 0:01:12]} 30. Rxc1 {[%emt 0:00:06]} Kg7 {[%emt 0:01:54]} 31. Nc4 {[%emt 0:06:04]} Rd4 {[%emt 0:03:37]} 32. b5 {[%emt 0:03:13]} Be4 {[%emt 0:05:43]} 33. a4 {[%emt 0:06:08]} Bd3 {[%emt 0:02:16]} 34. Nb2 {[%emt 0:01:16]} Be2 {[%emt 0:02:34]} 35. h3 {[%emt 0:04:54]} Rd2 {[%emt 0:00:29]} 36. Nc4 {[%emt 0:01:32]} Rd4 {[%emt 0:00:29]} 37. Nb2 {[%emt 0:02:33]} Rd2 38. Nc4 Rd4 {[%emt 0:00:48]} 39. Nb2 {[%emt 0:01:12]} Rd2 {[%emt 0:00:02]} 40. Nc4 {[%emt 0:00:00]} Rd4 {[%emt 0:00:00]} 41. b6 {[%emt 0:13:20]} Bxb6 {[%emt 0:02:22]} 42. Nxb6 {[%emt 0:00:28]} Bxa6 {[%emt 0:00:10]} 43. Rc6 {[%emt 0:00:42]} e5 {[%emt 0:02:00]} 44. a5 {[%emt 0:01:17]} Rd1+ {[%emt 0:00:52]} 45. Kh2 {[%emt 0:00:06]} Ra1 {[%emt 0:00:09]} 46. Rc5 {[%emt 0:00:42]} Kg6 {[%emt 0:02:56]} 47. Nd7 {[%emt 0:00:52]} h5 {[%emt 0:02:19]} 48. Nxe5+ {[%emt 0:04:01]} fxe5 {[%emt 0:01:39]} 49. Rc6+ {[%emt 0:00:03]} Kg5 {[%emt 0:03:33]} 50. Rxa6 {[%emt 0:00:04]} Ra3 {[%emt 0:01:47]} 51. Ra8 {[%emt 0:02:07]} f6 {[%emt 0:14:45]} 52. a6 {[%emt 0:00:40]} Kf4 {[%emt 0:01:00]} 53. a7 {[%emt 0:01:56]} f5 {[%emt 0:01:03]} 54. g4 {[%emt 0:02:41]} hxg4 {[%emt 0:01:37]} 55. hxg4 {[%emt 0:00:11]} Ra2 {[%emt 0:02:59]} 56. gxf5 {[%emt 0:02:50]} Rxf2+ {[%emt 0:00:27]} 57. Kg1 {[%emt 0:00:40]} Ra2 58. f6 {[%emt 0:00:26]} Kf3 {[%emt 0:00:38]} 59. f7 {[%emt 0:00:32]} Ra1+ {[%emt 0:00:04]} 60. Kh2 {[%emt 0:00:04]} Ra2+ {[%emt 0:00:09]} 61. Kh3 {[%emt 0:00:16]} 1-0

[Event "FIDE WYCC Girls U18 2023"]
[Site "Montesilvano"]
[Date "2023.11.15"]
[Round "3.26"]
[White "Gasimova, Samra"]
[Black "Lu, Yun-Ru"]
[Result "1-0"]
[ECO "D35"]
[WhiteElo "1860"]
[BlackElo "1284"]
[Annotator "NA"]
[PlyCount "97"]
[EventDate "2023.11.13"]
[EventType "swiss"]
[EventCountry "ITA"]
[SourceTitle "playchess.com"]
[Source "ChessBase"]
[SourceQuality "1"]
[TimeControl "40/5400+30:1800+30"]

1. d4 {[%emt 0:00:03]} d5 {[%emt 0:00:02]} 2. c4 {[%emt 0:00:09]} e6 {[%emt 0:00:16]} 3. Nc3 {[%emt 0:00:09]} Nf6 {[%emt 0:00:13]} 4. cxd5 {[%emt 0:00:05]} exd5 {[%emt 0:00:16]} 5. Bg5 {[%emt 0:00:30]} Be7 {[%emt 0:00:24]} 6. e3 {[%emt 0:00:20]} c6 {[%emt 0:00:35]} 7. Qc2 {[%emt 0:00:08]} O-O {[%emt 0:02:19]} 8. Bd3 {[%emt 0:00:09]} h6 {[%emt 0:00:32]} 9. Bh4 {[%emt 0:00:10]} Re8 {[%emt 0:03:45]} 10. Nge2 {[%emt 0:00:39]} Qc7 {[%emt 0:01:25]} 11. Bxf6 {[%emt 0:02:44]} Bxf6 {[%emt 0:00:12]} 12. Nxd5 {[%emt 0:00:15]} Qa5+ {[%emt 0:04:42]} 13. Ndc3 {[%emt 0:00:41]} Na6 {[%emt 0:04:07]} 14. a3 {[%emt 0:09:58]} Nb4 {[%emt 0:01:25]} 15. Bh7+ {[%emt 0:00:18]} Kh8 {[%emt 0:00:22]} 16. Qb1 {[%emt 0:00:17]} Nd5 {[%emt 0:00:47]} 17. Bd3 {[%emt 0:08:12]} Nxc3 {[%emt 0:08:55]} 18. bxc3 {[%emt 0:00:10]} Qc7 {[%emt 0:10:20]} 19. O-O {[%emt 0:03:10]} b6 {[%emt 0:00:53]} 20. e4 {[%emt 0:06:28]} Be6 {[%emt 0:03:15]} 21. f4 {[%emt 0:02:10]} Bg4 {[%emt 0:01:56]} 22. e5 {[%emt 0:03:52]} Be7 {[%emt 0:02:51]} 23. Ng3 {[%emt 0:02:40]} Bh4 {[%emt 0:02:49]} 24. Ne4 {[%emt 0:01:12]} Be7 {[%emt 0:04:00]} 25. f5 {[%emt 0:02:20]} Qd7 {[%emt 0:01:47]} 26. Nf2 {[%emt 0:07:52]} Bf3 {[%emt 0:08:28]} 27. gxf3 {[%emt 0:01:07]} Bf8 {[%emt 0:00:17]} 28. Qe1 {[%emt 0:05:40]} c5 {[%emt 0:00:56]} 29. Qe4 {[%emt 0:00:45]} cxd4 {[%emt 0:03:54]} 30. e6 {[%emt 0:01:20]} Qd6 {[%emt 0:01:05]} 31. f6 {[%emt 0:00:32]} g6 {[%emt 0:00:12]} 32. e7 {[%emt 0:00:07]} dxc3 {[%emt 0:06:18]} 33. Bb5 {[%emt 0:01:59]} Qxf6 {[%emt 0:02:10]} 34. Bxe8 {[%emt 0:00:22]} Rxe8 {[%emt 0:00:02]} 35. exf8=Q+ {[%emt 0:00:16]} Rxf8 {[%emt 0:00:09]} 36. Ng4 {[%emt 0:00:30]} Qh4 {[%emt 0:04:59]} 37. Qd4+ {[%emt 0:00:42]} f6 {[%emt 0:00:09]} 38. Qd6 {[%emt 0:00:47]} Kg7 {[%emt 0:01:19]} 39. Rae1 {[%emt 0:00:22]} h5 {[%emt 0:00:23]} 40. Re7+ {[%emt 0:00:00]} Rf7 {[%emt 0:00:00]} 41. Rxf7+ {[%emt 0:00:34]} Kxf7 {[%emt 0:00:08]} 42. Qc7+ {[%emt 0:00:15]} Kg8 {[%emt 0:00:24]} 43. Rd1 {[%emt 0:00:11]} f5 {[%emt 0:03:12]} 44. Rd8+ {[%emt 0:00:20]} Qxd8 {[%emt 0:00:05]} 45. Qxd8+ {[%emt 0:00:21]} Kf7 {[%emt 0:00:06]} 46. Qf6+ {[%emt 0:00:07]} Ke8 {[%emt 0:00:05]} 47. Ne5 {[%emt 0:00:05]} c2 {[%emt 0:00:32]} 48. Qf7+ {[%emt 0:00:06]} Kd8 {[%emt 0:00:01]} 49. Qd7# {[%emt 0:00:09]} 1-0

[Event "FIDE WYCC Girls U18 2023"]
[Site "Montesilvano"]
[Date "2023.11.15"]
[Round "3.27"]
[White "Ham Corona, Ana Paola"]
[Black "Groeschel, Karoline"]
[Result "0-1"]
[ECO "B23"]
[WhiteElo "1318"]
[BlackElo "1924"]
[Annotator "NA"]
[PlyCount "84"]
[EventDate "2023.11.13"]
[EventType "swiss"]
[EventCountry "ITA"]
[SourceTitle "playchess.com"]
[Source "ChessBase"]
[SourceQuality "1"]
[TimeControl "40/5400+30:1800+30"]

1. e4 {[%emt 0:00:26]} c5 {[%emt 0:00:03]} 2. Nc3 {[%emt 0:00:25]} e6 {[%emt 0:00:07]} 3. Bc4 {[%emt 0:00:27]} a6 {[%emt 0:00:13]} 4. a4 {[%emt 0:00:26]} Nf6 {[%emt 0:00:33]} 5. d3 {[%emt 0:00:25]} d5 {[%emt 0:00:31]} 6. Ba2 {[%emt 0:00:56]} h6 {[%emt 0:11:02]} 7. f4 {[%emt 0:02:34]} dxe4 {[%emt 0:02:25]} 8. Nxe4 {[%emt 0:04:26]} Nxe4 {[%emt 0:06:09]} 9. dxe4 {[%emt 0:00:34]} Qxd1+ {[%emt 0:00:04]} 10. Kxd1 {[%emt 0:00:08]} b6 {[%emt 0:00:41]} 11. Bb1 {[%emt 0:00:31]} Bb7 {[%emt 0:01:05]} 12. c3 {[%emt 0:02:10]} Nc6 {[%emt 0:03:01]} 13. Nf3 {[%emt 0:00:50]} O-O-O+ {[%emt 0:10:23]} 14. Ke2 {[%emt 0:01:38]} Bd6 {[%emt 0:02:12]} 15. Be3 {[%emt 0:07:04]} e5 {[%emt 0:05:29]} 16. fxe5 {[%emt 0:07:47]} Nxe5 {[%emt 0:01:44]} 17. Nxe5 {[%emt 0:07:00]} Bxe5 {[%emt 0:00:05]} 18. a5 {[%emt 0:01:00]} Kc7 {[%emt 0:04:10]} 19. axb6+ {[%emt 0:02:52]} Kxb6 {[%emt 0:00:51]} 20. Rf1 {[%emt 0:02:39]} Rd7 {[%emt 0:03:28]} 21. g3 {[%emt 0:04:14]} Rhd8 {[%emt 0:06:44]} 22. Bxc5+ {[%emt 0:04:59]} Kxc5 {[%emt 0:03:46]} 23. Ra5+ {[%emt 0:00:13]} Kd6 {[%emt 0:15:33]} 24. Rd1+ {[%emt 0:00:14]} Ke6 {[%emt 0:00:05]} 25. Ba2+ {[%emt 0:00:22]} Kf6 {[%emt 0:00:15]} 26. Rf1+ {[%emt 0:01:24]} Kg6 {[%emt 0:00:14]} 27. Rxe5 {[%emt 0:00:09]} f6 {[%emt 0:01:39]} 28. Ra5 {[%emt 0:02:05]} Rd2+ {[%emt 0:00:26]} 29. Ke3 {[%emt 0:00:30]} R8d3+ {[%emt 0:03:14]} 30. Kf4 {[%emt 0:02:56]} Rxh2 {[%emt 0:02:46]} 31. Bc4 {[%emt 0:01:37]} Rd6 {[%emt 0:03:40]} 32. b3 {[%emt 0:00:58]} Kh7 {[%emt 0:03:19]} 33. Bd5 {[%emt 0:02:00]} Bxd5 {[%emt 0:03:51]} 34. Rxd5 {[%emt 0:00:19]} Rc6 {[%emt 0:02:03]} 35. c4 {[%emt 0:00:33]} Rb2 {[%emt 0:00:36]} 36. Rf3 {[%emt 0:00:30]} Rb6 {[%emt 0:00:37]} 37. Ra5 {[%emt 0:00:18]} Kg6 {[%emt 0:02:14]} 38. g4 {[%emt 0:01:04]} Kf7 {[%emt 0:00:47]} 39. Kf5 {[%emt 0:05:52]} R2xb3 {[%emt 0:00:41]} 40. Rxb3 {[%emt 0:00:00]} Rxb3 {[%emt 0:00:00]} 41. Kf4 {[%emt 0:01:24]} g5+ {[%emt 0:02:35]} 42. Kf5 {[%emt 0:00:16]} Rf3# 0-1

[Event "FIDE WYCC Girls U18 2023"]
[Site "Montesilvano"]
[Date "2023.11.15"]
[Round "3.28"]
[White "Menon, Gauri"]
[Black "Saraci, Rinesa"]
[Result "1-0"]
[ECO "A06"]
[WhiteElo "1821"]
[BlackElo "1481"]
[Annotator "NA"]
[PlyCount "31"]
[EventDate "2023.11.13"]
[EventType "swiss"]
[EventCountry "ITA"]
[SourceTitle "playchess.com"]
[Source "ChessBase"]
[SourceQuality "1"]
[TimeControl "40/5400+30:1800+30"]

1. Nf3 {[%emt 0:00:02]} d5 {[%emt 0:00:13]} 2. c4 {[%emt 0:00:30]} Nf6 {[%emt 0:00:23]} 3. cxd5 {[%emt 0:00:18]} Nxd5 {[%emt 0:04:44]} 4. e4 {[%emt 0:01:13]} Nb6 {[%emt 0:02:49]} 5. Nc3 {[%emt 0:01:12]} c5 {[%emt 0:03:41]} 6. d4 {[%emt 0:03:45]} cxd4 {[%emt 0:03:55]} 7. Nxd4 {[%emt 0:00:07]} e5 {[%emt 0:10:32]} 8. Bb5+ {[%emt 0:02:56]} Bd7 {[%emt 0:04:17]} 9. Ne6 {[%emt 0:13:26]} Qc8 {[%emt 0:07:48]} 10. Nxf8 {[%emt 0:06:09]} Rxf8 {[%emt 0:06:27]} 11. Qd6 {[%emt 0:07:04]} f6 {[%emt 0:04:35]} 12. Be3 {[%emt 0:02:15]} Bc6 {[%emt 0:09:19]} 13. Bxb6 {[%emt 0:01:22]} axb6 {[%emt 0:00:46]} 14. Nd5 {[%emt 0:00:56]} Qd7 {[%emt 0:03:27]} 15. Nc7+ {[%emt 0:00:38]} Kd8 {[%emt 0:01:09]} 16. Ne6+ {[%emt 0:00:17]} 1-0

[Event "FIDE WYCC Girls U18 2023"]
[Site "Montesilvano"]
[Date "2023.11.15"]
[Round "3.29"]
[White "Ivanovic, Tara"]
[Black "Hyatt, Jessica"]
[Result "0-1"]
[ECO "C06"]
[WhiteElo "1575"]
[BlackElo "1818"]
[Annotator "NA"]
[PlyCount "62"]
[EventDate "2023.11.13"]
[EventType "swiss"]
[EventCountry "ITA"]
[SourceTitle "playchess.com"]
[Source "ChessBase"]
[SourceQuality "1"]
[TimeControl "40/5400+30:1800+30"]

1. e4 {[%emt 0:00:05]} e6 {[%emt 0:07:16]} 2. d4 {[%emt 0:00:08]} d5 {[%emt 0:00:08]} 3. Nd2 {[%emt 0:00:18]} Nf6 {[%emt 0:00:07]} 4. e5 {[%emt 0:01:45]} Nfd7 {[%emt 0:00:06]} 5. Bd3 {[%emt 0:01:01]} c5 {[%emt 0:00:05]} 6. c3 {[%emt 0:00:28]} Nc6 {[%emt 0:00:18]} 7. Ne2 {[%emt 0:05:29]} cxd4 {[%emt 0:00:09]} 8. cxd4 {[%emt 0:00:12]} f6 {[%emt 0:00:43]} 9. f4 {[%emt 0:10:53]} fxe5 {[%emt 0:00:06]} 10. fxe5 {[%emt 0:00:06]} Nxd4 {[%emt 0:00:07]} 11. Nxd4 {[%emt 0:00:35]} Qh4+ {[%emt 0:00:07]} 12. g3 {[%emt 0:01:57]} Qxd4 {[%emt 0:00:15]} 13. Nf3 {[%emt 0:03:52]} Bb4+ {[%emt 0:03:32]} 14. Kf1 {[%emt 0:04:15]} Qb6 {[%emt 0:15:19]} 15. Kg2 {[%emt 0:04:04]} Be7 {[%emt 0:01:49]} 16. Qe2 {[%emt 0:04:32]} Nc5 {[%emt 0:03:51]} 17. Be3 {[%emt 0:02:07]} Qd8 {[%emt 0:00:11]} 18. Bb5+ {[%emt 0:01:08]} Bd7 {[%emt 0:00:46]} 19. Rac1 {[%emt 0:05:44]} Ne4 {[%emt 0:03:33]} 20. Nd4 {[%emt 0:02:52]} O-O {[%emt 0:01:11]} 21. Bxd7 {[%emt 0:02:24]} Qxd7 {[%emt 0:00:08]} 22. Qg4 {[%emt 0:02:01]} Bc5 {[%emt 0:01:32]} 23. Rhe1 {[%emt 0:09:13]} Bxd4 {[%emt 0:06:37]} 24. Bxd4 {[%emt 0:00:07]} Rf5 {[%emt 0:01:07]} 25. Re2 {[%emt 0:03:10]} h5 {[%emt 0:01:40]} 26. Qh4 {[%emt 0:01:54]} Qb5 {[%emt 0:01:12]} 27. Rec2 {[%emt 0:00:38]} Qd3 {[%emt 0:00:51]} 28. Qe7 {[%emt 0:16:35]} Qf3+ {[%emt 0:01:41]} 29. Kg1 {[%emt 0:00:10]} Ng5 {[%emt 0:00:11]} 30. h4 {[%emt 0:02:59]} Qxg3+ {[%emt 0:02:26]} 31. Rg2 {[%emt 0:00:40]} Nf3+ {[%emt 0:00:46]} 0-1

[Event "FIDE WYCC Girls U18 2023"]
[Site "Montesilvano"]
[Date "2023.11.15"]
[Round "3.30"]
[White "Alexandrova, Angelina"]
[Black "Galli, Maria Vittoria"]
[Result "1-0"]
[ECO "E67"]
[WhiteElo "1814"]
[BlackElo "1452"]
[Annotator "NA"]
[PlyCount "121"]
[EventDate "2023.11.13"]
[EventType "swiss"]
[EventCountry "ITA"]
[SourceTitle "playchess.com"]
[Source "ChessBase"]
[SourceQuality "1"]
[TimeControl "40/5400+30:1800+30"]

1. d4 {[%emt 0:00:02]} Nf6 {[%emt 0:00:06]} 2. Nf3 {[%emt 0:00:09]} g6 {[%emt 0:00:12]} 3. g3 {[%emt 0:00:06]} Bg7 {[%emt 0:00:13]} 4. Bg2 {[%emt 0:00:05]} O-O {[%emt 0:00:54]} 5. O-O {[%emt 0:00:26]} d6 {[%emt 0:00:31]} 6. c4 {[%emt 0:00:43]} Nbd7 {[%emt 0:01:05]} 7. Nc3 {[%emt 0:00:43]} e5 {[%emt 0:02:50]} 8. dxe5 {[%emt 0:00:55]} Nxe5 {[%emt 0:00:37]} 9. Nxe5 {[%emt 0:00:41]} dxe5 {[%emt 0:00:08]} 10. Qb3 {[%emt 0:04:05]} c6 {[%emt 0:03:09]} 11. Rd1 {[%emt 0:01:58]} Qc7 {[%emt 0:02:03]} 12. Bg5 {[%emt 0:03:18]} Be6 {[%emt 0:03:37]} 13. a4 {[%emt 0:06:05]} a5 {[%emt 0:03:26]} 14. Be3 {[%emt 0:05:40]} Qe7 {[%emt 0:05:52]} 15. Na2 {[%emt 0:16:03]} Rab8 {[%emt 0:15:48]} 16. Bb6 {[%emt 0:01:24]} Nd7 {[%emt 0:01:43]} 17. Bxa5 {[%emt 0:07:21]} b6 {[%emt 0:08:14]} 18. Bb4 {[%emt 0:12:10]} c5 {[%emt 0:07:41]} 19. Be1 {[%emt 0:00:09]} f5 {[%emt 0:04:21]} 20. Bd5 {[%emt 0:00:25]} Bxd5 {[%emt 0:00:51]} 21. cxd5 {[%emt 0:01:14]} Qd6 {[%emt 0:01:45]} 22. Nc3 {[%emt 0:02:35]} Nf6 {[%emt 0:04:01]} 23. Nb5 {[%emt 0:03:21]} Qd7 {[%emt 0:01:11]} 24. Bc3 {[%emt 0:12:36]} Ne4 {[%emt 0:05:21]} 25. d6+ {[%emt 0:04:44]} Kh8 {[%emt 0:00:17]} 26. Qd5 {[%emt 0:03:32]} Nxc3 {[%emt 0:05:50]} 27. bxc3 {[%emt 0:00:02]} e4 {[%emt 0:00:32]} 28. Ra2 {[%emt 0:01:41]} Ra8 {[%emt 0:05:37]} 29. e3 {[%emt 0:02:23]} Rad8 {[%emt 0:02:48]} 30. c4 {[%emt 0:00:54]} Ra8 {[%emt 0:02:17]} 31. a5 {[%emt 0:02:41]} bxa5 {[%emt 0:04:12]} 32. Qxc5 {[%emt 0:00:07]} Rfc8 {[%emt 0:01:06]} 33. Nc7 {[%emt 0:01:06]} Rab8 {[%emt 0:01:58]} 34. Qxa5 {[%emt 0:00:40]} Bf8 {[%emt 0:01:52]} 35. c5 {[%emt 0:00:41]} Rb7 {[%emt 0:01:17]} 36. Qa4 {[%emt 0:01:03]} Rbxc7 {[%emt 0:01:24]} 37. dxc7 {[%emt 0:00:12]} Qxa4 {[%emt 0:00:04]} 38. Rxa4 {[%emt 0:00:10]} Rxc7 {[%emt 0:00:17]} 39. Ra8 {[%emt 0:00:41]} Kg7 {[%emt 0:00:31]} 40. c6 {[%emt 0:00:00]} Rxc6 {[%emt 0:00:00]} 41. Rd7+ {[%emt 0:00:20]} Kg8 {[%emt 0:00:38]} 42. Kg2 {[%emt 0:05:40]} h6 {[%emt 0:02:18]} 43. h3 {[%emt 0:01:55]} Rf6 {[%emt 0:02:09]} 44. Raa7 {[%emt 0:02:20]} g5 {[%emt 0:05:26]} 45. Rd4 {[%emt 0:05:43]} Bc5 {[%emt 0:01:40]} 46. Rd8+ {[%emt 0:00:18]} Bf8 {[%emt 0:00:09]} 47. Ra4 {[%emt 0:00:21]} h5 {[%emt 0:01:47]} 48. g4 {[%emt 0:01:42]} hxg4 {[%emt 0:03:13]} 49. hxg4 {[%emt 0:00:14]} Kg7 {[%emt 0:00:30]} 50. gxf5 {[%emt 0:00:28]} Rxf5 {[%emt 0:00:54]} 51. Rxe4 {[%emt 0:00:08]} Bc5 {[%emt 0:01:00]} 52. Ra4 {[%emt 0:06:07]} Kg6 {[%emt 0:04:31]} 53. Ra6+ {[%emt 0:01:17]} Kf7 {[%emt 0:01:32]} 54. Rd7+ {[%emt 0:02:11]} Be7 {[%emt 0:00:50]} 55. Raa7 {[%emt 0:00:39]} Re5 {[%emt 0:00:09]} 56. Kg3 {[%emt 0:00:46]} Kf6 {[%emt 0:00:22]} 57. Rxe7 {[%emt 0:03:52]} Rxe7 {[%emt 0:00:25]} 58. Rxe7 {[%emt 0:00:04]} Kxe7 {[%emt 0:00:06]} 59. Kg4 {[%emt 0:00:06]} Kf6 {[%emt 0:00:14]} 60. e4 {[%emt 0:00:16]} Ke5 {[%emt 0:01:04]} 61. Kxg5 {[%emt 0:01:27]} 1-0

[Event "FIDE WYCC Girls U18 2023"]
[Site "Montesilvano"]
[Date "2023.11.15"]
[Round "3.31"]
[White "Keerti Shree Reddy"]
[Black "Stagno, Milena"]
[Result "1-0"]
[ECO "B74"]
[WhiteElo "1741"]
[BlackElo "1444"]
[Annotator "NA"]
[PlyCount "91"]
[EventDate "2023.11.13"]
[EventType "swiss"]
[EventCountry "ITA"]
[SourceTitle "playchess.com"]
[Source "ChessBase"]
[SourceQuality "1"]
[TimeControl "40/5400+30:1800+30"]

1. e4 {[%emt 0:00:39]} c5 {[%emt 0:00:15]} 2. Nf3 {[%emt 0:00:08]} Nc6 {[%emt 0:00:06]} 3. d4 {[%emt 0:00:05]} cxd4 {[%emt 0:00:34]} 4. Nxd4 {[%emt 0:00:06]} g6 {[%emt 0:00:38]} 5. Nc3 {[%emt 0:00:19]} Bg7 {[%emt 0:01:07]} 6. Be3 {[%emt 0:00:43]} Nf6 {[%emt 0:02:17]} 7. Be2 {[%emt 0:00:36]} O-O {[%emt 0:02:12]} 8. Nb3 {[%emt 0:00:25]} d6 {[%emt 0:03:42]} 9. O-O {[%emt 0:00:32]} Be6 {[%emt 0:01:24]} 10. f4 {[%emt 0:01:27]} Qd7 {[%emt 0:04:29]} 11. Qe1 {[%emt 0:11:02]} Ng4 {[%emt 0:11:15]} 12. Bxg4 {[%emt 0:05:57]} Bxg4 {[%emt 0:00:37]} 13. f5 {[%emt 0:07:22]} gxf5 {[%emt 0:10:41]} 14. h3 {[%emt 0:04:33]} Bxh3 {[%emt 0:00:26]} 15. gxh3 {[%emt 0:01:12]} fxe4 {[%emt 0:02:00]} 16. Qh4 {[%emt 0:11:11]} Kh8 {[%emt 0:07:39]} 17. Nxe4 {[%emt 0:05:57]} Qe6 {[%emt 0:04:05]} 18. Rae1 {[%emt 0:11:15]} Qg6+ {[%emt 0:03:40]} 19. Kh1 {[%emt 0:03:39]} d5 {[%emt 0:02:04]} 20. Ng5 {[%emt 0:07:50]} Bxb2 {[%emt 0:09:11]} 21. Bd4+ {[%emt 0:12:48]} Bxd4 {[%emt 0:03:31]} 22. Nxd4 {[%emt 0:00:07]} f6 {[%emt 0:00:11]} 23. Nge6 {[%emt 0:05:31]} Rg8 {[%emt 0:00:18]} 24. Rg1 {[%emt 0:01:19]} Qf7 {[%emt 0:00:34]} 25. Nxc6 {[%emt 0:03:59]} bxc6 {[%emt 0:00:24]} 26. Nd4 {[%emt 0:00:37]} c5 {[%emt 0:03:25]} 27. Nf5 {[%emt 0:00:09]} Rxg1+ {[%emt 0:01:34]} 28. Rxg1 {[%emt 0:00:01]} Rg8 {[%emt 0:04:11]} 29. Rxg8+ {[%emt 0:00:30]} Qxg8 {[%emt 0:00:05]} 30. Nxe7 {[%emt 0:00:52]} Qe6 {[%emt 0:00:11]} 31. Ng6+ {[%emt 0:00:07]} Kg7 {[%emt 0:00:04]} 32. Qxh7+ {[%emt 0:00:39]} Kxh7 {[%emt 0:00:30]} 33. Nf8+ {[%emt 0:00:01]} Kh6 {[%emt 0:00:13]} 34. Nxe6 {[%emt 0:00:06]} c4 {[%emt 0:00:03]} 35. Kg2 {[%emt 0:01:49]} Kg6 {[%emt 0:03:54]} 36. Nf4+ {[%emt 0:00:15]} Kf5 {[%emt 0:00:03]} 37. Nxd5 {[%emt 0:00:24]} Ke5 {[%emt 0:00:03]} 38. Ne3 {[%emt 0:00:56]} Kd4 {[%emt 0:03:19]} 39. Kf3 {[%emt 0:00:22]} Kc3 {[%emt 0:00:49]} 40. h4 {[%emt 0:00:00]} Kb4 {[%emt 0:00:00]} 41. h5 {[%emt 0:00:21]} c3 {[%emt 0:00:13]} 42. h6 {[%emt 0:00:10]} Ka3 {[%emt 0:00:07]} 43. h7 {[%emt 0:00:08]} a5 {[%emt 0:00:48]} 44. h8=Q {[%emt 0:00:31]} a4 {[%emt 0:00:13]} 45. Nd1 {[%emt 0:03:20]} Kxa2 {[%emt 0:02:54]} 46. Nxc3+ {[%emt 0:00:07]} 1-0